Workbook

Sheet Echelle
B2: Echelle de notes
J3: Etablissement
B4: Evaluation en points | F4: =IF(H4=TRUE,"p","f") -> p | H4: TRUE | J4: Nom du travail
B5: (points ou fautes) | J5: Date
B6: 1/2 | C6: =IF(F4="f","fautes","points") -> points | F6: =IF(H6=TRUE,"oui","non") -> non | H6: FALSE | L6: =IF(F6="oui",0.5,1) -> 1
E8: =C6 -> points | F8: note | L8: dif. pt | M8: dif.no | N8: pente | O8: cons | R8: dif p | S8: dif n | T8: pente | U8: const
B9: performence max. | E9: 30 | F9: 6 | K9: A | L9: =E9-E10 -> 18 | M9: =F9-F10 -> 2 | N9: =M9/L9 -> 0.1111111111 | O9: =F9-(E9*N9) -> 2.666666667 | R9: =E10-E9 -> -18 | S9: =F9-F10 -> 2 | T9: =S9/R9 -> -0.1111111111 | U9: =F9-(-E9*T9) -> 2.666666667
B10: seuil | E10: 12 | F10: 4 | K10: B | L10: =E10-E11 -> 10 | M10: =F10-F11 -> 2.5 | N10: =M10/L10 -> 0.25 | O10: =F10-(E10*N10) -> 1 | R10: =E11-E10 -> -10 | S10: =F10-F11 -> 2.5 | T10: =S10/R10 -> -0.25 | U10: =F10-(-E10*T10) -> 1
B11: performence min. | E11: 2 | F11: 1.5
B13: =C6 -> points | C13: note | E13: =C6 -> points | F13: note | K13: par pt
B14: =IF($F$4="p",IF($L14>0.5,ROUND(K14*2,0)/2,""),IF($S14>0.5,ROUND(R14*2,0)/2,"")) -> 30 | C14: =IF($F$4="p",IF($L14>0.5,ROUND(L14*$Q$36,0)/$Q$36,""),IF($S14>0.5,ROUND(S14*$Q$36,0)/$Q$36,"")) -> 6 | D14: =IF(C14="","",VLOOKUP(C14,IF($F$9>6,Lettres2,Lettres),2)) -> A | E14: =IF($F$4="p",IF($L14>0.5,ROUND(N14*2,0)/2,""),IF($S14>0.5,ROUND(U14*2,0)/2,"")) -> 29 | F14: =IF($F$4="p",IF($L14>0.5,ROUND(O14*$Q$36,0)/$Q$36,""),IF($S14>0.5,ROUND(V14*$Q$36,0)/$Q$36,"")) -> 6 | G14: =IF(F14="","",VLOOKUP(F14,IF($F$9>6,Lettres2,Lettres),2)) -> A | K14: =E9 -> 30 | L14: =IF(K14>=$E$10,(K14*$N$9)+$O$9,(K14*$N$10)+$O$10) -> 6 | N14: =K14-$L$6 -> 29 | O14: =IF(N14>=$E$10,(N14*$N$9)+$O$9,(N14*$N$10)+$O$10) -> 5.888888889 | R14: =E9 -> 30 | S14: =IF(R14<=$E$10,(-$T$9*R14)+$U$9,(-$T$10*R14)+$U$10) -> 8.5 | U14: =R14+$L$6 -> 31 | V14: =IF(U14<=$E$10,(-$T$9*U14)+$U$9,(-$T$10*U14)+$U$10) -> 8.75
B15: 28 | C15: =IF($F$4="p",IF($L15>0.5,ROUND(L15*$Q$36,0)/$Q$36,""),IF($S15>0.5,ROUND(S15*$Q$36,0)/$Q$36,"")) -> 6 | D15: A | E15: 27 | F15: =IF($F$4="p",IF($L15>0.5,ROUND(O15*$Q$36,0)/$Q$36,""),IF($S15>0.5,ROUND(V15*$Q$36,0)/$Q$36,"")) -> 5.5 | G15: B | K15: =N14-$L$6 -> 28 | L15: 5.777777778 | N15: 27 | O15: 5.666666667 | R15: =U14+$L$6 -> 32 | S15: 9 | U15: 33 | V15: 9.25
B16: 26 | C16: 5.5 | D16: B | E16: 25 | F16: 5.5 | G16: B | K16: 26 | L16: 5.555555556 | N16: 25 | O16: 5.444444444 | R16: 34 | S16: 9.5 | U16: 35 | V16: 9.75
B17: 24 | C17: 5.5 | D17: B | E17: 23 | F17: 5 | G17: C | K17: 24 | L17: 5.333333333 | N17: 23 | O17: 5.222222222 | R17: 36 | S17: 10 | U17: 37 | V17: 10.25
B18: 22 | C18: 5 | D18: C | E18: 21 | F18: 5 | G18: C | K18: 22 | L18: 5.111111111 | N18: 21 | O18: 5 | R18: 38 | S18: 10.5 | U18: 39 | V18: 10.75
B19: 20 | C19: 5 | D19: C | E19: 19 | F19: 5 | G19: C | K19: 20 | L19: 4.888888889 | N19: 19 | O19: 4.777777778 | R19: 40 | S19: 11 | U19: 41 | V19: 11.25
B20: 18 | C20: 4.5 | D20: D | E20: 17 | F20: 4.5 | G20: D | K20: 18 | L20: 4.666666667 | N20: 17 | O20: 4.555555556 | R20: 42 | S20: 11.5 | U20: 43 | V20: 11.75
B21: 16 | C21: 4.5 | D21: D | E21: 15 | F21: 4.5 | G21: D | K21: 16 | L21: 4.444444444 | N21: 15 | O21: 4.333333333 | R21: 44 | S21: 12 | U21: 45 | V21: 12.25
B22: 14 | C22: 4 | D22: E | E22: 13 | F22: 4 | G22: E | K22: 14 | L22: 4.222222222 | N22: 13 | O22: 4.111111111 | R22: 46 | S22: 12.5 | U22: 47 | V22: 12.75
B23: 12 | C23: 4 | D23: E | E23: 11 | F23: 4 | G23: E | K23: 12 | L23: 4 | N23: 11 | O23: 3.75 | R23: 48 | S23: 13 | U23: 49 | V23: 13.25
B24: 10 | C24: 3.5 | D24: F | E24: 9 | F24: 3.5 | G24: F | K24: 10 | L24: 3.5 | N24: 9 | O24: 3.25 | R24: 50 | S24: 13.5 | U24: 51 | V24: 13.75
B25: 8 | C25: 3 | D25: F | E25: 7 | F25: 3 | G25: F | K25: 8 | L25: 3 | N25: 7 | O25: 2.75 | R25: 52 | S25: 14 | U25: 53 | V25: 14.25
B26: 6 | C26: 2.5 | D26: F | E26: 5 | F26: 2.5 | G26: F | K26: 6 | L26: 2.5 | N26: 5 | O26: 2.25 | R26: 54 | S26: 14.5 | U26: 55 | V26: 14.75
B27: 4 | C27: 2 | D27: F | E27: 3 | F27: 2 | G27: F | K27: 4 | L27: 2 | N27: 3 | O27: 1.75 | R27: 56 | S27: 15 | U27: 57 | V27: 15.25
B28: 2 | C28: 1.5 | D28: F | E28: 1 | F28: 1.5 | G28: F | K28: 2 | L28: 1.5 | N28: 1 | O28: 1.25 | R28: 58 | S28: 15.5 | U28: 59 | V28: 15.75
B29: 0 | C29: 1 | D29: F | E29: -1 | F29: 1 | G29: F | K29: 0 | L29: 1 | N29: -1 | O29: 0.75 | R29: 60 | S29: 16 | U29: 61 | V29: 16.25
K30: -2 | L30: 0.5 | N30: -3 | O30: 0.25 | R30: 62 | S30: 16.5 | U30: 63 | V30: 16.75
B31: =IF($F$4="p",IF($L31>0.5,ROUND(K31*2,0)/2,""),IF($S31>0.5,ROUND(R31*2,0)/2,"")) ->  | E31: =IF($F$4="p",IF($L31>0.5,ROUND(N31*2,0)/2,""),IF($S31>0.5,ROUND(U31*2,0)/2,"")) ->  | K31: -4 | L31: 0 | N31: -5 | O31: -0.25 | R31: 64 | S31: 17 | U31: 65 | V31: 17.25
K32: -6 | L32: -0.5 | N32: -7 | O32: -0.75 | R32: 66 | S32: 17.5 | U32: 67 | V32: 17.75
K33: -8 | L33: -1 | N33: -9 | O33: -1.25 | R33: 68 | S33: 18 | U33: 69 | V33: 18.25
K34: -10 | L34: -1.5 | N34: -11 | O34: -1.75 | Q34: Arrondi | R34: 70 | S34: 18.5 | U34: 71 | V34: 18.75
K35: -12 | L35: -2 | N35: -13 | O35: -2.25 | Q35: 1 | R35: 72 | S35: 19 | U35: 73 | V35: 19.25
K36: -14 | L36: -2.5 | N36: -15 | O36: -2.75 | Q36: =IF(Q35=1,2,IF(Q35=2,5,1)) -> 2 | R36: 74 | S36: 19.5 | U36: 75 | V36: 19.75
K37: -16 | L37: -3 | N37: -17 | O37: -3.25 | R37: 76 | S37: 20 | U37: 77 | V37: 20.25
I38: =IF($F$4="p",IF($L63>0.5,ROUND(K63*2,0)/2,""),IF($S63>0.5,ROUND(R63*2,0)/2,"")) ->  | K38: -18 | L38: -3.5 | N38: -19 | O38: -3.75 | R38: 78 | S38: 20.5 | U38: 79 | V38: 20.75
K39: -20 | L39: -4 | N39: -21 | O39: -4.25 | R39: 80 | S39: 21 | U39: 81 | V39: 21.25
K40: -22 | L40: -4.5 | N40: -23 | O40: -4.75 | R40: 82 | S40: 21.5 | U40: 83 | V40: 21.75
K41: -24 | L41: -5 | N41: -25 | O41: -5.25 | R41: 84 | S41: 22 | U41: 85 | V41: 22.25
K42: -26 | L42: -5.5 | N42: -27 | O42: -5.75 | R42: 86 | S42: 22.5 | U42: 87 | V42: 22.75
K43: -28 | L43: -6 | N43: -29 | O43: -6.25 | R43: 88 | S43: 23 | U43: 89 | V43: 23.25
K44: -30 | L44: -6.5 | N44: -31 | O44: -6.75 | R44: 90 | S44: 23.5 | U44: 91 | V44: 23.75
K45: -32 | L45: -7 | N45: -33 | O45: -7.25 | R45: 92 | S45: 24 | U45: 93 | V45: 24.25
D46: =IF(C46="","",VLOOKUP(C46,IF($F$9>6,Lettres2,Lettres),2)) ->  | G46: =IF(F46="","",VLOOKUP(F46,IF($F$9>6,Lettres2,Lettres),2)) ->  | K46: -34 | L46: -7.5 | N46: -35 | O46: -7.75 | R46: 94 | S46: 24.5 | U46: 95 | V46: 24.75
K47: -36 | L47: -8 | N47: -37 | O47: -8.25 | R47: 96 | S47: 25 | U47: 97 | V47: 25.25
K48: -38 | L48: -8.5 | N48: -39 | O48: -8.75 | R48: 98 | S48: 25.5 | U48: 99 | V48: 25.75
K49: -40 | L49: -9 | N49: -41 | O49: -9.25 | R49: 100 | S49: 26 | U49: 101 | V49: 26.25
K50: -42 | L50: -9.5 | N50: -43 | O50: -9.75 | R50: 102 | S50: 26.5 | U50: 103 | V50: 26.75
K51: -44 | L51: -10 | N51: -45 | O51: -10.25 | R51: 104 | S51: 27 | U51: 105 | V51: 27.25
K52: -46 | L52: -10.5 | N52: -47 | O52: -10.75 | R52: 106 | S52: 27.5 | U52: 107 | V52: 27.75
K53: -48 | L53: -11 | N53: -49 | O53: -11.25 | R53: 108 | S53: 28 | U53: 109 | V53: 28.25
K54: -50 | L54: -11.5 | N54: -51 | O54: -11.75 | R54: 110 | S54: 28.5 | U54: 111 | V54: 28.75
K55: -52 | L55: -12 | N55: -53 | O55: -12.25 | R55: 112 | S55: 29 | U55: 113 | V55: 29.25
B56: =IF($F$4="p",IF($L56>0.5,ROUND(K56*2,0)/2,""),IF($S56>0.5,ROUND(R56*2,0)/2,"")) ->  | E56: =IF($F$4="p",IF($L56>0.5,ROUND(N56*2,0)/2,""),IF($S56>0.5,ROUND(U56*2,0)/2,"")) ->  | K56: =N55-$L$6 -> -54 | L56: -12.5 | N56: =K56-$L$6 -> -55 | O56: -12.75 | R56: =U55+$L$6 -> 114 | S56: 29.5 | U56: =R56+$L$6 -> 115 | V56: 29.75
K57: -56 | L57: -13 | N57: -57 | O57: -13.25 | R57: 116 | S57: 30 | U57: 117 | V57: 30.25
K58: -58 | L58: -13.5 | N58: -59 | O58: -13.75 | R58: 118 | S58: 30.5 | U58: 119 | V58: 30.75
K59: -60 | L59: -14 | N59: -61 | O59: -14.25 | R59: 120 | S59: 31 | U59: 121 | V59: 31.25
K60: -62 | L60: -14.5 | N60: -63 | O60: -14.75 | R60: 122 | S60: 31.5 | U60: 123 | V60: 31.75
K61: -64 | L61: -15 | N61: -65 | O61: -15.25 | R61: 124 | S61: 32 | U61: 125 | V61: 32.25
K62: -66 | L62: -15.5 | N62: -67 | O62: -15.75 | R62: 126 | S62: 32.5 | U62: 127 | V62: 32.75
K63: -68 | L63: -16 | N63: -69 | O63: -16.25 | R63: 128 | S63: 33 | U63: 129 | V63: 33.25

Sheet Grille
B1: Réglages dans la feuille "Echelle" | H1: 1 | Q1: paire/impaire
B2: Evaluation en points | F2: =IF(H2=TRUE,"p","f") -> p | G2: Maximum : | H2: =Echelle!H4 -> TRUE | I2: =Echelle!B14 -> 30 | L2: Nb élèves : | M2: =SUM(K6:K105) -> 24 | Q2: =I2 -> 30 | R2: =IF(ROUND((Q2/2),0)=Q2/2,0,1) -> 0 | S2: Voir détail | T2: FALSE | AM2: 100% : | AN2: =SUM(AI4:AM4) -> 18 | AO2: =SUM(AI4:AN4) -> 24
B3: (points ou fautes) | H3: =IF(F4="non",1,0.5) -> 1 | K3: Moyenne : | M3: =Q5/M2 -> 4.25 | Q3: =Echelle!E9 -> 30 | R3: =IF(ROUND((Q3/2),0)=Q3/2,0,1) -> 0 | T3: seuil | U3: =Echelle!F10 -> 4 | V3: % ECTS (hors échecs)
B4: 1/2 | C4: =IF(F2="f","fautes","points") -> points | F4: =IF(H4=TRUE,"oui","non") -> non | H4: =Echelle!H6 -> FALSE | K4: Statistiques | Q4: somme | R4: =SUM(R2:R3) -> 0 | T4: tot au seuil | U4: =VLOOKUP(Echelle!F10,S6:T105,2,FALSE) -> 18 | AI4: =SUM(AI6:AI106) -> 1 | AJ4: =SUM(AJ6:AJ106) -> 2 | AK4: 3 | AL4: 8 | AM4: 4 | AN4: 6
G5: Notes | H5: 2 | I5: Lettres | K5: nb | L5: % (arrondis) | M5: % cumulés | O5: Ordre inverse | Q5: =SUM(Q6:Q106) -> 102 | T5: nb | V5: % (arrondis) | X5: % cumulés | AA5: % ECTS | AI5: A | AJ5: B | AK5: C | AL5: D | AM5: E | AN5: F
B6: =IF(F2="f",0,I2) -> 30 | G6: =IF(H6=1,VLOOKUP(B6,TableauA,2,FALSE),VLOOKUP(B6,TableauB,2,FALSE)) -> 6 | H6: =IF($R$4=1,0,1) -> 1 | I6: =IF(H6=1,VLOOKUP(B6,TableauA,3,FALSE),VLOOKUP(B6,TableauB,3,FALSE)) -> A | K6: =LEN(C6) -> 0 | L6: =ROUND(K6*100/$M$2,1)&" %" -> 0 % | M6: =ROUND((K6*100/$M$2),0) -> 0 | N6: =IF(K6=0,"","%") ->  | O6: =100-M6&" %" -> 100 % | Q6: =IF(ISNUMBER(G6)=TRUE,G6*K6,0) -> 0 | R6: =G6 -> 6 | S6: =IF(R7=R6,0,R6) -> 0 | T6: =K6 -> 0 | V6: =IF(G6<$U$3,"", ROUND((K6*100/$U$4),0)) -> 0 | W6: =IF(K6=0,"","%") ->  | X6: =IF(G6<$U$3,0,ROUND((K6*100/$U$4),0)) -> 0 | Y6: =IF(K6=0,"","%") ->  | AA6: A | AB6: 10% | AC6: =ROUND((AI$4*100/$AN$2),0) -> 6 | AD6: % | AE6: =ROUND((AI$4*100/$AO$2),0) -> 4 | AF6: % | AH6: =ISERROR(I6) -> FALSE | AI6: =IF($AH6=FALSE,IF($I6="A",($K6),0),0) -> 0 | AJ6: =IF($AH6=FALSE,IF($I6="B",($K6),0),0) -> 0 | AK6: =IF($AH6=FALSE,IF($I6="C",($K6),0),0) -> 0 | AL6: =IF($AH6=FALSE,IF($I6="D",($K6),0),0) -> 0 | AM6: =IF($AH6=FALSE,IF($I6="E",($K6),0),0) -> 0 | AN6: =IF($AH6=FALSE,IF($I6="F",($K6),0),0) -> 0
B7: =IF($F$2="f",B6+$H$3,B6-$H$3) -> 29 | G7: 6 | H7: =IF($R$4=1,1,0) -> 0 | I7: A | K7: =LEN(C7) -> 0 | L7: =ROUND(K7*100/$M$2,0)&" %" -> 0 % | M7: =ROUND((K7*100/$M$2) +M6,0) -> 0 | N7: =IF(K7=0,"","%") ->  | O7: =100-M7&" %" -> 100 % | Q7: =IF(ISNUMBER(G7)=TRUE,G7*K7,0) -> 0 | R7: =G7 -> 6 | S7: =IF(R8=R7,0,R7) -> 0 | T7: =T6+K7 -> 0 | V7: =IF(G7<$U$3,"", ROUND((K7*100/$U$4),0)) -> 0 | W7: =IF(K7=0,"","%") ->  | X7: =IF(G7<$U$3,0,ROUND((K7*100/$U$4),0)+X6) -> 0 | Y7: =IF(K7=0,"","%") ->  | AA7: B | AB7: 25% | AC7: =ROUND((AJ$4*100/$AN$2),0) -> 11 | AD7: % | AE7: =ROUND((AJ$4*100/$AO$2),0) -> 8 | AF7: % | AH7: FALSE | AI7: =IF($AH7=FALSE,IF($I7="A",($K7),0),0) -> 0 | AJ7: =IF($AH7=FALSE,IF($I7="B",($K7),0),0) -> 0 | AK7: =IF($AH7=FALSE,IF($I7="C",($K7),0),0) -> 0 | AL7: =IF($AH7=FALSE,IF($I7="D",($K7),0),0) -> 0 | AM7: =IF($AH7=FALSE,IF($I7="E",($K7),0),0) -> 0 | AN7: =IF($AH7=FALSE,IF($I7="F",($K7),0),0) -> 0
B8: =IF($F$2="f",B7+$H$3,B7-$H$3) -> 28 | C8: x | G8: 6 | H8: =IF($R$4=1,0,1) -> 1 | I8: A | K8: 1 | L8: =ROUND(K8*100/$M$2,0)&" %" -> 4 % | M8: =ROUND((K8*100/$M$2) +M7,0) -> 4 | N8: % | O8: 96 % | Q8: 6 | R8: =G8 -> 6 | S8: 6 | T8: =T7+K8 -> 1 | V8: 6 | W8: % | X8: =IF(G8<$U$3,0,ROUND((K8*100/$U$4),0)+X7) -> 6 | Y8: =IF(K8=0,"","%") -> % | AA8: C | AB8: 30% | AC8: =ROUND((AK$4*100/$AN$2),0) -> 17 | AD8: % | AE8: =ROUND((AK$4*100/$AO$2),0) -> 13 | AF8: % | AH8: FALSE | AI8: 1 | AJ8: 0 | AK8: 0 | AL8: 0 | AM8: 0 | AN8: 0
B9: 27 | G9: 5.5 | H9: =IF($R$4=1,1,0) -> 0 | I9: B | K9: 0 | L9: 0 % | M9: 4 | O9: 96 % | Q9: 0 | R9: 5.5 | S9: 0 | T9: 1 | V9: 0 | X9: 6 | AA9: D | AB9: 25% | AC9: =ROUND((AL$4*100/$AN$2),0) -> 44 | AD9: % | AE9: =ROUND((AL$4*100/$AO$2),0) -> 33 | AF9: % | AH9: FALSE | AI9: 0 | AJ9: 0 | AK9: 0 | AL9: 0 | AM9: 0 | AN9: 0
B10: 26 | C10: xx | G10: 5.5 | H10: =IF($R$4=1,0,1) -> 1 | I10: B | K10: 2 | L10: 8 % | M10: 12 | N10: % | O10: 88 % | Q10: 11 | R10: 5.5 | S10: 0 | T10: 3 | V10: 11 | W10: % | X10: 17 | Y10: % | AA10: E | AB10: 10% | AC10: =ROUND((AM$4*100/$AN$2),0) -> 22 | AD10: % | AE10: =ROUND((AM$4*100/$AO$2),0) -> 17 | AF10: % | AH10: FALSE | AI10: 0 | AJ10: 2 | AK10: 0 | AL10: 0 | AM10: 0 | AN10: 0
B11: 25 | G11: 5.5 | H11: =IF($R$4=1,1,0) -> 0 | I11: B | K11: 0 | L11: 0 % | M11: 12 | O11: 88 % | Q11: 0 | R11: 5.5 | S11: 0 | T11: 3 | V11: 0 | X11: 17 | AB11: 100% | AC11: =SUM(AC6:AC10) -> 100 | AD11: % | AE11: =SUM(AE6:AE10) -> 75 | AF11: % | AH11: FALSE | AI11: 0 | AJ11: 0 | AK11: 0 | AL11: 0 | AM11: 0 | AN11: 0
B12: 24 | G12: 5.5 | H12: =IF($R$4=1,0,1) -> 1 | I12: B | K12: 0 | L12: 0 % | M12: 12 | O12: 88 % | Q12: 0 | R12: 5.5 | S12: 5.5 | T12: 3 | V12: 0 | X12: 17 | AH12: FALSE | AI12: 0 | AJ12: 0 | AK12: 0 | AL12: 0 | AM12: 0 | AN12: 0
B13: 23 | C13: xx | G13: 5 | H13: =IF($R$4=1,1,0) -> 0 | I13: C | K13: 2 | L13: 8 % | M13: 20 | N13: % | O13: 80 % | Q13: 10 | R13: 5 | S13: 0 | T13: 5 | V13: 11 | W13: % | X13: 28 | Y13: % | AA13: F | AE13: =ROUND((AN$4*100/$AO$2),0) -> 25 | AF13: % | AH13: FALSE | AI13: 0 | AJ13: 0 | AK13: 2 | AL13: 0 | AM13: 0 | AN13: 0
B14: 22 | G14: 5 | H14: =IF($R$4=1,0,1) -> 1 | I14: C | K14: 0 | L14: 0 % | M14: 20 | O14: 80 % | Q14: 0 | R14: 5 | S14: 0 | T14: 5 | V14: 0 | X14: 28 | AE14: =SUM(AE11:AE13) -> 100 | AF14: % | AH14: FALSE | AI14: 0 | AJ14: 0 | AK14: 0 | AL14: 0 | AM14: 0 | AN14: 0
B15: 21 | G15: 5 | H15: =IF($R$4=1,1,0) -> 0 | I15: C | K15: 0 | L15: 0 % | M15: 20 | O15: 80 % | Q15: 0 | R15: 5 | S15: 0 | T15: 5 | V15: 0 | X15: 28 | AH15: FALSE | AI15: 0 | AJ15: 0 | AK15: 0 | AL15: 0 | AM15: 0 | AN15: 0
B16: 20 | C16: x | G16: 5 | H16: =IF($R$4=1,0,1) -> 1 | I16: C | K16: 1 | L16: 4 % | M16: 24 | N16: % | O16: 76 % | Q16: 5 | R16: 5 | S16: 0 | T16: 6 | V16: 6 | W16: % | X16: 34 | Y16: % | AH16: FALSE | AI16: 0 | AJ16: 0 | AK16: 1 | AL16: 0 | AM16: 0 | AN16: 0
B17: 19 | G17: 5 | H17: =IF($R$4=1,1,0) -> 0 | I17: C | K17: 0 | L17: 0 % | M17: 24 | O17: 76 % | Q17: 0 | R17: 5 | S17: 5 | T17: 6 | V17: 0 | X17: 34 | AH17: FALSE | AI17: 0 | AJ17: 0 | AK17: 0 | AL17: 0 | AM17: 0 | AN17: 0
B18: 18 | C18: xxx | G18: 4.5 | H18: =IF($R$4=1,0,1) -> 1 | I18: D | K18: 3 | L18: 13 % | M18: 37 | N18: % | O18: 63 % | Q18: 13.5 | R18: 4.5 | S18: 0 | T18: 9 | V18: 17 | W18: % | X18: 51 | Y18: % | AH18: FALSE | AI18: 0 | AJ18: 0 | AK18: 0 | AL18: 3 | AM18: 0 | AN18: 0
B19: 17 | G19: 4.5 | H19: =IF($R$4=1,1,0) -> 0 | I19: D | K19: 0 | L19: 0 % | M19: 37 | O19: 63 % | Q19: 0 | R19: 4.5 | S19: 0 | T19: 9 | V19: 0 | X19: 51 | AH19: FALSE | AI19: 0 | AJ19: 0 | AK19: 0 | AL19: 0 | AM19: 0 | AN19: 0
B20: 16 | C20: xx | G20: 4.5 | H20: =IF($R$4=1,0,1) -> 1 | I20: D | K20: 2 | L20: 8 % | M20: 45 | N20: % | O20: 55 % | Q20: 9 | R20: 4.5 | S20: 0 | T20: 11 | V20: 11 | W20: % | X20: 62 | Y20: % | AH20: FALSE | AI20: 0 | AJ20: 0 | AK20: 0 | AL20: 2 | AM20: 0 | AN20: 0
B21: 15 | C21: xxx | G21: 4.5 | H21: =IF($R$4=1,1,0) -> 0 | I21: D | K21: 3 | L21: 13 % | M21: 58 | N21: % | O21: 42 % | Q21: 13.5 | R21: 4.5 | S21: 4.5 | T21: 14 | V21: 17 | W21: % | X21: 79 | Y21: % | AH21: FALSE | AI21: 0 | AJ21: 0 | AK21: 0 | AL21: 3 | AM21: 0 | AN21: 0
B22: 14 | G22: 4 | H22: =IF($R$4=1,0,1) -> 1 | I22: E | K22: 0 | L22: 0 % | M22: 58 | O22: 42 % | Q22: 0 | R22: 4 | S22: 0 | T22: 14 | V22: 0 | X22: 79 | AH22: FALSE | AI22: 0 | AJ22: 0 | AK22: 0 | AL22: 0 | AM22: 0 | AN22: 0
B23: 13 | G23: 4 | H23: =IF($R$4=1,1,0) -> 0 | I23: E | K23: 0 | L23: 0 % | M23: 58 | O23: 42 % | Q23: 0 | R23: 4 | S23: 0 | T23: 14 | V23: 0 | X23: 79 | AH23: FALSE | AI23: 0 | AJ23: 0 | AK23: 0 | AL23: 0 | AM23: 0 | AN23: 0
B24: 12 | C24: xxxx | G24: 4 | H24: =IF($R$4=1,0,1) -> 1 | I24: E | K24: 4 | L24: 17 % | M24: 75 | N24: % | O24: 25 % | Q24: 16 | R24: 4 | S24: 0 | T24: 18 | V24: 22 | W24: % | X24: 101 | Y24: % | AH24: FALSE | AI24: 0 | AJ24: 0 | AK24: 0 | AL24: 0 | AM24: 4 | AN24: 0
B25: 11 | G25: 4 | H25: =IF($R$4=1,1,0) -> 0 | I25: E | K25: 0 | L25: 0 % | M25: 75 | O25: 25 % | Q25: 0 | R25: 4 | S25: 4 | T25: 18 | V25: 0 | X25: 101 | AH25: FALSE | AI25: 0 | AJ25: 0 | AK25: 0 | AL25: 0 | AM25: 0 | AN25: 0
B26: 10 | C26: xx | G26: 3.5 | H26: =IF($R$4=1,0,1) -> 1 | I26: F | K26: 2 | L26: 8 % | M26: 83 | N26: % | O26: 17 % | Q26: 7 | R26: 3.5 | S26: 0 | T26: 20 | W26: % | X26: 0 | Y26: % | AH26: FALSE | AI26: 0 | AJ26: 0 | AK26: 0 | AL26: 0 | AM26: 0 | AN26: 2
B27: 9 | G27: 3.5 | H27: =IF($R$4=1,1,0) -> 0 | I27: F | K27: 0 | L27: 0 % | M27: 83 | O27: 17 % | Q27: 0 | R27: 3.5 | S27: 3.5 | T27: 20 | X27: 0 | AH27: FALSE | AI27: 0 | AJ27: 0 | AK27: 0 | AL27: 0 | AM27: 0 | AN27: 0
B28: 8 | C28: xx | G28: 3 | H28: =IF($R$4=1,0,1) -> 1 | I28: F | K28: 2 | L28: 8 % | M28: 91 | N28: % | O28: 9 % | Q28: 6 | R28: 3 | S28: 0 | T28: 22 | W28: % | X28: 0 | Y28: % | AH28: FALSE | AI28: 0 | AJ28: 0 | AK28: 0 | AL28: 0 | AM28: 0 | AN28: 2
B29: 7 | G29: 3 | H29: =IF($R$4=1,1,0) -> 0 | I29: F | K29: 0 | L29: 0 % | M29: 91 | O29: 9 % | Q29: 0 | R29: 3 | S29: 3 | T29: 22 | X29: 0 | AH29: FALSE | AI29: 0 | AJ29: 0 | AK29: 0 | AL29: 0 | AM29: 0 | AN29: 0
B30: 6 | C30: xx | G30: 2.5 | H30: =IF($R$4=1,0,1) -> 1 | I30: F | K30: 2 | L30: 8 % | M30: 99 | N30: % | O30: 1 % | Q30: 5 | R30: 2.5 | S30: 0 | T30: 24 | W30: % | X30: 0 | Y30: % | AH30: FALSE | AI30: 0 | AJ30: 0 | AK30: 0 | AL30: 0 | AM30: 0 | AN30: 2
B31: 5 | G31: 2.5 | H31: =IF($R$4=1,1,0) -> 0 | I31: F | K31: 0 | L31: 0 % | M31: 99 | O31: 1 % | Q31: 0 | R31: 2.5 | S31: 2.5 | T31: 24 | X31: 0 | AH31: FALSE | AI31: 0 | AJ31: 0 | AK31: 0 | AL31: 0 | AM31: 0 | AN31: 0
B32: 4 | G32: 2 | H32: =IF($R$4=1,0,1) -> 1 | I32: F | K32: 0 | L32: 0 % | M32: 99 | O32: 1 % | Q32: 0 | R32: 2 | S32: 0 | T32: 24 | X32: 0 | AH32: FALSE | AI32: 0 | AJ32: 0 | AK32: 0 | AL32: 0 | AM32: 0 | AN32: 0
B33: 3 | G33: 2 | H33: =IF($R$4=1,1,0) -> 0 | I33: F | K33: 0 | L33: 0 % | M33: 99 | O33: 1 % | Q33: 0 | R33: 2 | S33: 2 | T33: 24 | X33: 0 | AH33: FALSE | AI33: 0 | AJ33: 0 | AK33: 0 | AL33: 0 | AM33: 0 | AN33: 0
B34: 2 | G34: 1.5 | H34: =IF($R$4=1,0,1) -> 1 | I34: F | K34: 0 | L34: 0 % | M34: 99 | O34: 1 % | Q34: 0 | R34: 1.5 | S34: 0 | T34: 24 | X34: 0 | AH34: FALSE | AI34: 0 | AJ34: 0 | AK34: 0 | AL34: 0 | AM34: 0 | AN34: 0
B35: 1 | G35: 1.5 | H35: =IF($R$4=1,1,0) -> 0 | I35: F | K35: 0 | L35: 0 % | M35: 99 | O35: 1 % | Q35: 0 | R35: 1.5 | S35: 1.5 | T35: 24 | X35: 0 | AH35: =ISERROR(I35) -> FALSE | AI35: 0 | AJ35: 0 | AK35: 0 | AL35: 0 | AM35: 0 | AN35: 0
B36: 0 | G36: 1 | H36: =IF($R$4=1,0,1) -> 1 | I36: F | K36: 0 | L36: 0 % | M36: 99 | O36: 1 % | Q36: 0 | R36: 1 | S36: 0 | T36: 24 | X36: 0 | AH36: FALSE | AI36: 0 | AJ36: 0 | AK36: 0 | AL36: 0 | AM36: 0 | AN36: 0
B37: -1 | G37: 1 | H37: =IF($R$4=1,1,0) -> 0 | I37: F | K37: 0 | L37: 0 % | M37: 99 | O37: 1 % | Q37: 0 | R37: 1 | T37: 24 | X37: 0 | AH37: FALSE | AI37: 0 | AJ37: 0 | AK37: 0 | AL37: 0 | AM37: 0 | AN37: 0
B38: -2 | H38: =IF($R$4=1,0,1) -> 1 | K38: 0 | L38: 0 % | M38: 99 | O38: 1 % | Q38: 0 | T38: 24 | AH38: =ISERROR(I38) -> TRUE | AI38: 0 | AJ38: 0 | AK38: 0 | AL38: 0 | AM38: 0 | AN38: 0
B39: -3 | H39: =IF($R$4=1,1,0) -> 0 | K39: 0 | L39: 0 % | M39: 99 | O39: 1 % | Q39: 0 | T39: 24 | AH39: =ISERROR(I39) -> TRUE | AI39: 0 | AJ39: 0 | AK39: 0 | AL39: 0 | AM39: 0 | AN39: 0
B40: -4 | H40: =IF($R$4=1,0,1) -> 1 | K40: 0 | L40: 0 % | M40: 99 | O40: 1 % | Q40: 0 | T40: 24 | AH40: TRUE | AI40: 0 | AJ40: 0 | AK40: 0 | AL40: 0 | AM40: 0 | AN40: 0
B41: -5 | H41: =IF($R$4=1,1,0) -> 0 | K41: 0 | L41: 0 % | M41: 99 | O41: 1 % | Q41: 0 | T41: 24 | AH41: TRUE | AI41: 0 | AJ41: 0 | AK41: 0 | AL41: 0 | AM41: 0 | AN41: 0
B42: -6 | H42: =IF($R$4=1,0,1) -> 1 | K42: 0 | L42: 0 % | M42: 99 | O42: 1 % | Q42: 0 | T42: 24 | AH42: TRUE | AI42: 0 | AJ42: 0 | AK42: 0 | AL42: 0 | AM42: 0 | AN42: 0
B43: -7 | H43: =IF($R$4=1,1,0) -> 0 | K43: 0 | L43: 0 % | M43: 99 | O43: 1 % | Q43: 0 | T43: 24 | AH43: TRUE | AI43: 0 | AJ43: 0 | AK43: 0 | AL43: 0 | AM43: 0 | AN43: 0
B44: -8 | H44: =IF($R$4=1,0,1) -> 1 | K44: 0 | L44: 0 % | M44: 99 | O44: 1 % | Q44: 0 | T44: 24 | AH44: TRUE | AI44: 0 | AJ44: 0 | AK44: 0 | AL44: 0 | AM44: 0 | AN44: 0
B45: -9 | H45: =IF($R$4=1,1,0) -> 0 | K45: 0 | L45: 0 % | M45: 99 | O45: 1 % | Q45: 0 | T45: 24 | AH45: TRUE | AI45: 0 | AJ45: 0 | AK45: 0 | AL45: 0 | AM45: 0 | AN45: 0
B46: -10 | H46: =IF($R$4=1,0,1) -> 1 | K46: 0 | L46: 0 % | M46: 99 | O46: 1 % | Q46: 0 | T46: 24 | AH46: TRUE | AI46: 0 | AJ46: 0 | AK46: 0 | AL46: 0 | AM46: 0 | AN46: 0
B47: -11 | H47: =IF($R$4=1,1,0) -> 0 | K47: 0 | L47: 0 % | M47: 99 | O47: 1 % | Q47: 0 | T47: 24 | AH47: TRUE | AI47: 0 | AJ47: 0 | AK47: 0 | AL47: 0 | AM47: 0 | AN47: 0
B48: -12 | H48: =IF($R$4=1,0,1) -> 1 | K48: 0 | L48: 0 % | M48: 99 | O48: 1 % | Q48: 0 | T48: 24 | AH48: TRUE | AI48: 0 | AJ48: 0 | AK48: 0 | AL48: 0 | AM48: 0 | AN48: 0
B49: -13 | H49: =IF($R$4=1,1,0) -> 0 | K49: 0 | L49: 0 % | M49: 99 | O49: 1 % | Q49: 0 | T49: 24 | AH49: TRUE | AI49: 0 | AJ49: 0 | AK49: 0 | AL49: 0 | AM49: 0 | AN49: 0
B50: -14 | H50: =IF($R$4=1,0,1) -> 1 | K50: 0 | L50: 0 % | M50: 99 | O50: 1 % | Q50: 0 | T50: 24 | AH50: TRUE | AI50: 0 | AJ50: 0 | AK50: 0 | AL50: 0 | AM50: 0 | AN50: 0
B51: -15 | H51: =IF($R$4=1,1,0) -> 0 | K51: 0 | L51: 0 % | M51: 99 | O51: 1 % | Q51: 0 | T51: 24 | AH51: TRUE | AI51: 0 | AJ51: 0 | AK51: 0 | AL51: 0 | AM51: 0 | AN51: 0
B52: -16 | H52: =IF($R$4=1,0,1) -> 1 | K52: 0 | L52: 0 % | M52: 99 | O52: 1 % | Q52: 0 | T52: 24 | AH52: TRUE | AI52: 0 | AJ52: 0 | AK52: 0 | AL52: 0 | AM52: 0 | AN52: 0
B53: -17 | H53: =IF($R$4=1,1,0) -> 0 | K53: 0 | L53: 0 % | M53: 99 | O53: 1 % | Q53: 0 | T53: 24 | AH53: TRUE | AI53: 0 | AJ53: 0 | AK53: 0 | AL53: 0 | AM53: 0 | AN53: 0
B54: -18 | H54: =IF($R$4=1,0,1) -> 1 | K54: 0 | L54: 0 % | M54: 99 | O54: 1 % | Q54: 0 | T54: 24 | AH54: TRUE | AI54: 0 | AJ54: 0 | AK54: 0 | AL54: 0 | AM54: 0 | AN54: 0
B55: -19 | H55: =IF($R$4=1,1,0) -> 0 | K55: 0 | L55: 0 % | M55: 99 | O55: 1 % | Q55: 0 | T55: 24 | AH55: TRUE | AI55: 0 | AJ55: 0 | AK55: 0 | AL55: 0 | AM55: 0 | AN55: 0
B56: -20 | H56: =IF($R$4=1,0,1) -> 1 | K56: 0 | L56: 0 % | M56: 99 | O56: 1 % | Q56: 0 | T56: 24 | AH56: TRUE | AI56: 0 | AJ56: 0 | AK56: 0 | AL56: 0 | AM56: 0 | AN56: 0
B57: -21 | H57: =IF($R$4=1,1,0) -> 0 | K57: 0 | L57: 0 % | M57: 99 | O57: 1 % | Q57: 0 | T57: 24 | AH57: TRUE | AI57: 0 | AJ57: 0 | AK57: 0 | AL57: 0 | AM57: 0 | AN57: 0
B58: -22 | H58: =IF($R$4=1,0,1) -> 1 | K58: 0 | L58: 0 % | M58: 99 | O58: 1 % | Q58: 0 | T58: 24 | AH58: TRUE | AI58: 0 | AJ58: 0 | AK58: 0 | AL58: 0 | AM58: 0 | AN58: 0
B59: -23 | H59: =IF($R$4=1,1,0) -> 0 | K59: 0 | L59: 0 % | M59: 99 | O59: 1 % | Q59: 0 | T59: 24 | AH59: TRUE | AI59: 0 | AJ59: 0 | AK59: 0 | AL59: 0 | AM59: 0 | AN59: 0
B60: -24 | H60: =IF($R$4=1,0,1) -> 1 | K60: 0 | L60: 0 % | M60: 99 | O60: 1 % | Q60: 0 | T60: 24 | AH60: TRUE | AI60: 0 | AJ60: 0 | AK60: 0 | AL60: 0 | AM60: 0 | AN60: 0
B61: -25 | H61: =IF($R$4=1,1,0) -> 0 | K61: 0 | L61: 0 % | M61: 99 | O61: 1 % | Q61: 0 | T61: 24 | AH61: TRUE | AI61: 0 | AJ61: 0 | AK61: 0 | AL61: 0 | AM61: 0 | AN61: 0
B62: -26 | H62: =IF($R$4=1,0,1) -> 1 | K62: 0 | L62: 0 % | M62: 99 | O62: 1 % | Q62: 0 | T62: 24 | AH62: TRUE | AI62: 0 | AJ62: 0 | AK62: 0 | AL62: 0 | AM62: 0 | AN62: 0
B63: -27 | H63: =IF($R$4=1,1,0) -> 0 | K63: 0 | L63: 0 % | M63: 99 | O63: 1 % | Q63: 0 | T63: 24 | AH63: TRUE | AI63: 0 | AJ63: 0 | AK63: 0 | AL63: 0 | AM63: 0 | AN63: 0
B64: -28 | H64: =IF($R$4=1,0,1) -> 1 | K64: 0 | L64: 0 % | M64: 99 | O64: 1 % | Q64: 0 | T64: 24 | AH64: TRUE | AI64: 0 | AJ64: 0 | AK64: 0 | AL64: 0 | AM64: 0 | AN64: 0
B65: -29 | H65: =IF($R$4=1,1,0) -> 0 | K65: 0 | L65: 0 % | M65: 99 | O65: 1 % | Q65: 0 | T65: 24 | AH65: TRUE | AI65: 0 | AJ65: 0 | AK65: 0 | AL65: 0 | AM65: 0 | AN65: 0
B66: -30 | H66: =IF($R$4=1,0,1) -> 1 | K66: 0 | L66: 0 % | M66: 99 | O66: 1 % | Q66: 0 | T66: 24 | AH66: TRUE | AI66: 0 | AJ66: 0 | AK66: 0 | AL66: 0 | AM66: 0 | AN66: 0
B67: -31 | H67: =IF($R$4=1,1,0) -> 0 | K67: 0 | L67: 0 % | M67: 99 | O67: 1 % | Q67: 0 | T67: 24 | AH67: TRUE | AI67: 0 | AJ67: 0 | AK67: 0 | AL67: 0 | AM67: 0 | AN67: 0
B68: -32 | H68: =IF($R$4=1,0,1) -> 1 | K68: 0 | L68: 0 % | M68: 99 | O68: 1 % | Q68: 0 | T68: 24 | AH68: TRUE | AI68: 0 | AJ68: 0 | AK68: 0 | AL68: 0 | AM68: 0 | AN68: 0
B69: -33 | H69: =IF($R$4=1,1,0) -> 0 | K69: 0 | L69: 0 % | M69: 99 | O69: 1 % | Q69: 0 | T69: 24 | AH69: TRUE | AI69: 0 | AJ69: 0 | AK69: 0 | AL69: 0 | AM69: 0 | AN69: 0
B70: -34 | G70: =IF(H70=1,VLOOKUP(B70,TableauA,2,FALSE),VLOOKUP(B70,TableauB,2,FALSE)) ->  | H70: =IF($R$4=1,0,1) -> 1 | I70: =IF(H70=1,VLOOKUP(B70,TableauA,3,FALSE),VLOOKUP(B70,TableauB,3,FALSE)) ->  | K70: 0 | L70: 0 % | M70: 99 | O70: 1 % | Q70: 0 | T70: 24 | AH70: TRUE | AI70: 0 | AJ70: 0 | AK70: 0 | AL70: 0 | AM70: 0 | AN70: 0
B71: -35 | H71: =IF($R$4=1,1,0) -> 0 | K71: =LEN(C71) -> 0 | L71: 0 % | M71: 99 | N71: =IF(K71=0,"","%") ->  | O71: =100-M71&" %" -> 1 % | Q71: =IF(ISNUMBER(G71)=TRUE,G71*K71,0) -> 0 | S71: =IF(R72=R71,0,R71) ->  | T71: 24 | V71: =IF(G71<$U$3,"", ROUND((K71*100/$U$4),0)) ->  | W71: =IF(K71=0,"","%") ->  | AH71: TRUE | AI71: =IF($AH71=FALSE,IF($I71="A",($K71),0),0) -> 0 | AJ71: =IF($AH71=FALSE,IF($I71="B",($K71),0),0) -> 0 | AK71: =IF($AH71=FALSE,IF($I71="C",($K71),0),0) -> 0 | AL71: =IF($AH71=FALSE,IF($I71="D",($K71),0),0) -> 0 | AM71: =IF($AH71=FALSE,IF($I71="E",($K71),0),0) -> 0 | AN71: =IF($AH71=FALSE,IF($I71="F",($K71),0),0) -> 0
B72: =IF($F$2="f",B71+$H$3,B71-$H$3) -> -36 | H72: =IF($R$4=1,0,1) -> 1 | K72: 0 | L72: =ROUND(K72*100/$M$2,0)&" %" -> 0 % | M72: =ROUND((K72*100/$M$2) +M71,0) -> 99 | O72: 1 % | Q72: 0 | R72: =G72 ->  | T72: =T71+K72 -> 24 | X72: =IF(G72<$U$3,0,ROUND((K72*100/$U$4),0)+X71) ->  | Y72: =IF(K72=0,"","%") ->  | AH72: TRUE | AI72: 0 | AJ72: 0 | AK72: 0 | AL72: 0 | AM72: 0 | AN72: 0
B73: -37 | H73: =IF($R$4=1,1,0) -> 0 | K73: 0 | L73: 0 % | M73: 99 | O73: 1 % | Q73: 0 | T73: 24 | AH73: TRUE | AI73: 0 | AJ73: 0 | AK73: 0 | AL73: 0 | AM73: 0 | AN73: 0
B74: -38 | H74: =IF($R$4=1,0,1) -> 1 | K74: 0 | L74: 0 % | M74: 99 | O74: 1 % | Q74: 0 | T74: 24 | AH74: TRUE | AI74: 0 | AJ74: 0 | AK74: 0 | AL74: 0 | AM74: 0 | AN74: 0
B75: -39 | H75: =IF($R$4=1,1,0) -> 0 | K75: 0 | L75: 0 % | M75: 99 | O75: 1 % | Q75: 0 | T75: 24 | AH75: TRUE | AI75: 0 | AJ75: 0 | AK75: 0 | AL75: 0 | AM75: 0 | AN75: 0
B76: -40 | H76: =IF($R$4=1,0,1) -> 1 | K76: 0 | L76: 0 % | M76: 99 | O76: 1 % | Q76: 0 | T76: 24 | AH76: TRUE | AI76: 0 | AJ76: 0 | AK76: 0 | AL76: 0 | AM76: 0 | AN76: 0
B77: -41 | H77: =IF($R$4=1,1,0) -> 0 | K77: 0 | L77: 0 % | M77: 99 | O77: 1 % | Q77: 0 | T77: 24 | AH77: TRUE | AI77: 0 | AJ77: 0 | AK77: 0 | AL77: 0 | AM77: 0 | AN77: 0
B78: -42 | H78: =IF($R$4=1,0,1) -> 1 | K78: 0 | L78: 0 % | M78: 99 | O78: 1 % | Q78: 0 | T78: 24 | AH78: TRUE | AI78: 0 | AJ78: 0 | AK78: 0 | AL78: 0 | AM78: 0 | AN78: 0
B79: -43 | H79: =IF($R$4=1,1,0) -> 0 | K79: 0 | L79: 0 % | M79: 99 | O79: 1 % | Q79: 0 | T79: 24 | AH79: TRUE | AI79: 0 | AJ79: 0 | AK79: 0 | AL79: 0 | AM79: 0 | AN79: 0
B80: -44 | H80: =IF($R$4=1,0,1) -> 1 | K80: 0 | L80: 0 % | M80: 99 | O80: 1 % | Q80: 0 | T80: 24 | AH80: TRUE | AI80: 0 | AJ80: 0 | AK80: 0 | AL80: 0 | AM80: 0 | AN80: 0
B81: -45 | H81: =IF($R$4=1,1,0) -> 0 | K81: 0 | L81: 0 % | M81: 99 | O81: 1 % | Q81: 0 | T81: 24 | AH81: TRUE | AI81: 0 | AJ81: 0 | AK81: 0 | AL81: 0 | AM81: 0 | AN81: 0
B82: -46 | H82: =IF($R$4=1,0,1) -> 1 | K82: 0 | L82: 0 % | M82: 99 | O82: 1 % | Q82: 0 | T82: 24 | AH82: TRUE | AI82: 0 | AJ82: 0 | AK82: 0 | AL82: 0 | AM82: 0 | AN82: 0
B83: -47 | H83: =IF($R$4=1,1,0) -> 0 | K83: 0 | L83: 0 % | M83: 99 | O83: 1 % | Q83: 0 | T83: 24 | AH83: TRUE | AI83: 0 | AJ83: 0 | AK83: 0 | AL83: 0 | AM83: 0 | AN83: 0
B84: -48 | H84: =IF($R$4=1,0,1) -> 1 | K84: 0 | L84: 0 % | M84: 99 | O84: 1 % | Q84: 0 | T84: 24 | AH84: TRUE | AI84: 0 | AJ84: 0 | AK84: 0 | AL84: 0 | AM84: 0 | AN84: 0
B85: -49 | H85: =IF($R$4=1,1,0) -> 0 | K85: 0 | L85: 0 % | M85: 99 | O85: 1 % | Q85: 0 | T85: 24 | AH85: TRUE | AI85: 0 | AJ85: 0 | AK85: 0 | AL85: 0 | AM85: 0 | AN85: 0
B86: -50 | H86: =IF($R$4=1,0,1) -> 1 | K86: 0 | L86: 0 % | M86: 99 | O86: 1 % | Q86: 0 | T86: 24 | AH86: TRUE | AI86: 0 | AJ86: 0 | AK86: 0 | AL86: 0 | AM86: 0 | AN86: 0
B87: -51 | H87: =IF($R$4=1,1,0) -> 0 | K87: 0 | L87: 0 % | M87: 99 | O87: 1 % | Q87: 0 | T87: 24 | AH87: TRUE | AI87: 0 | AJ87: 0 | AK87: 0 | AL87: 0 | AM87: 0 | AN87: 0
B88: -52 | H88: =IF($R$4=1,0,1) -> 1 | K88: 0 | L88: 0 % | M88: 99 | O88: 1 % | Q88: 0 | T88: 24 | AH88: TRUE | AI88: 0 | AJ88: 0 | AK88: 0 | AL88: 0 | AM88: 0 | AN88: 0
B89: -53 | H89: =IF($R$4=1,1,0) -> 0 | K89: 0 | L89: 0 % | M89: 99 | O89: 1 % | Q89: 0 | T89: 24 | AH89: TRUE | AI89: 0 | AJ89: 0 | AK89: 0 | AL89: 0 | AM89: 0 | AN89: 0
B90: -54 | H90: =IF($R$4=1,0,1) -> 1 | K90: 0 | L90: 0 % | M90: 99 | O90: 1 % | Q90: 0 | T90: 24 | AH90: TRUE | AI90: 0 | AJ90: 0 | AK90: 0 | AL90: 0 | AM90: 0 | AN90: 0
B91: -55 | H91: =IF($R$4=1,1,0) -> 0 | K91: 0 | L91: 0 % | M91: 99 | O91: 1 % | Q91: 0 | T91: 24 | AH91: TRUE | AI91: 0 | AJ91: 0 | AK91: 0 | AL91: 0 | AM91: 0 | AN91: 0
B92: -56 | H92: =IF($R$4=1,0,1) -> 1 | K92: 0 | L92: 0 % | M92: 99 | O92: 1 % | Q92: 0 | T92: 24 | AH92: TRUE | AI92: 0 | AJ92: 0 | AK92: 0 | AL92: 0 | AM92: 0 | AN92: 0
B93: -57 | H93: =IF($R$4=1,1,0) -> 0 | K93: 0 | L93: 0 % | M93: 99 | O93: 1 % | Q93: 0 | T93: 24 | AH93: TRUE | AI93: 0 | AJ93: 0 | AK93: 0 | AL93: 0 | AM93: 0 | AN93: 0
B94: -58 | H94: =IF($R$4=1,0,1) -> 1 | K94: 0 | L94: 0 % | M94: 99 | O94: 1 % | Q94: 0 | T94: 24 | AH94: TRUE | AI94: 0 | AJ94: 0 | AK94: 0 | AL94: 0 | AM94: 0 | AN94: 0
B95: -59 | H95: =IF($R$4=1,1,0) -> 0 | K95: 0 | L95: 0 % | M95: 99 | O95: 1 % | Q95: 0 | T95: 24 | AH95: TRUE | AI95: 0 | AJ95: 0 | AK95: 0 | AL95: 0 | AM95: 0 | AN95: 0
B96: -60 | H96: =IF($R$4=1,0,1) -> 1 | K96: 0 | L96: 0 % | M96: 99 | O96: 1 % | Q96: 0 | T96: 24 | AH96: TRUE | AI96: 0 | AJ96: 0 | AK96: 0 | AL96: 0 | AM96: 0 | AN96: 0
B97: -61 | H97: =IF($R$4=1,1,0) -> 0 | K97: 0 | L97: 0 % | M97: 99 | O97: 1 % | Q97: 0 | T97: 24 | AH97: TRUE | AI97: 0 | AJ97: 0 | AK97: 0 | AL97: 0 | AM97: 0 | AN97: 0
B98: -62 | H98: =IF($R$4=1,0,1) -> 1 | K98: 0 | L98: 0 % | M98: 99 | O98: 1 % | Q98: 0 | T98: 24 | AH98: TRUE | AI98: 0 | AJ98: 0 | AK98: 0 | AL98: 0 | AM98: 0 | AN98: 0
B99: -63 | H99: =IF($R$4=1,1,0) -> 0 | K99: 0 | L99: 0 % | M99: 99 | O99: 1 % | Q99: 0 | T99: 24 | AH99: TRUE | AI99: 0 | AJ99: 0 | AK99: 0 | AL99: 0 | AM99: 0 | AN99: 0
B100: -64 | H100: =IF($R$4=1,0,1) -> 1 | K100: 0 | L100: 0 % | M100: 99 | O100: 1 % | Q100: 0 | T100: 24 | AH100: TRUE | AI100: 0 | AJ100: 0 | AK100: 0 | AL100: 0 | AM100: 0 | AN100: 0
B101: -65 | H101: =IF($R$4=1,1,0) -> 0 | K101: 0 | L101: 0 % | M101: 99 | O101: 1 % | Q101: 0 | T101: 24 | AH101: TRUE | AI101: 0 | AJ101: 0 | AK101: 0 | AL101: 0 | AM101: 0 | AN101: 0
B102: -66 | H102: =IF($R$4=1,0,1) -> 1 | K102: 0 | L102: 0 % | M102: 99 | O102: 1 % | Q102: 0 | T102: 24 | AH102: TRUE | AI102: 0 | AJ102: 0 | AK102: 0 | AL102: 0 | AM102: 0 | AN102: 0
B103: -67 | H103: =IF($R$4=1,1,0) -> 0 | K103: 0 | L103: 0 % | M103: 99 | O103: 1 % | Q103: 0 | T103: 24 | AH103: =ISERROR(I103) -> TRUE | AI103: 0 | AJ103: 0 | AK103: 0 | AL103: 0 | AM103: 0 | AN103: 0
B104: -68 | H104: =IF($R$4=1,0,1) -> 1 | K104: 0 | L104: 0 % | M104: 99 | O104: 1 % | Q104: 0 | T104: 24 | AH104: TRUE | AI104: 0 | AJ104: 0 | AK104: 0 | AL104: 0 | AM104: 0 | AN104: 0
B105: -69 | H105: =IF($R$4=1,1,0) -> 0 | K105: 0 | L105: 0 % | M105: 99 | O105: 1 % | Q105: 0 | T105: 24 | AH105: TRUE | AI105: 0 | AJ105: 0 | AK105: 0 | AL105: 0 | AM105: 0 | AN105: 0
B106: -70 | H106: =IF($R$4=1,0,1) -> 1 | K106: 0 | L106: 0 % | M106: 99 | O106: 1 % | Q106: 0 | T106: 24 | AH106: TRUE | AI106: 0 | AJ106: 0 | AK106: 0 | AL106: 0 | AM106: 0 | AN106: 0
R107: 0 | S107: 0

Sheet Conversions
H2: Max : | I2: =Echelle!F9 -> 6 | J2: =IF(I2<11,1,2) -> 1
B3: Lettres | F3: Lettres2 | I3: >6 | J3: A | L3: >10 | M3: B
B4: 0 | C4: F | F4: =IF($J$2=1,I4,L4) -> 0 | G4: F | I4: 0 | J4: F | L4: 0 | M4: F
B5: 1.5 | C5: F | F5: =IF($J$2=1,I5,L5) -> 0 | G5: F | I5: 0 | J5: F | L5: 0 | M5: F
B6: 1 | C6: F | F6: 0 | G6: F | I6: 0 | J6: F | L6: 0 | M6: F
B7: 1.5 | C7: F | F7: 0 | G7: F | I7: 0 | J7: F | L7: 0 | M7: F
B8: 2 | C8: F | F8: 0 | G8: F | I8: 0 | J8: F | L8: 0 | M8: F
B9: 2.5 | C9: F | F9: 0 | G9: F | I9: 0 | J9: F | L9: 0 | M9: F
B10: 3 | C10: F | F10: 0 | G10: F | I10: 0 | J10: F | L10: 0 | M10: F
B11: 3.5 | C11: F | F11: 0 | G11: F | I11: 0 | J11: F | L11: 0 | M11: F
B12: 4 | C12: E | F12: 6 | G12: E | I12: 6 | J12: E | L12: 10 | M12: E
B13: 4.5 | C13: D | F13: 6.5 | G13: D | I13: 6.5 | J13: D | L13: 11 | M13: D
B14: 5 | C14: C | F14: 7.5 | G14: C | I14: 7.5 | J14: C | L14: 13 | M14: C
B15: 5.5 | C15: B | F15: 8.5 | G15: B | I15: 8.5 | J15: B | L15: 15 | M15: B
B16: 6 | C16: A | F16: 9.5 | G16: A | I16: 9.5 | J16: A | L16: 17 | M16: A
D18: Tabelle des échelles de notation
D20: Ancienne échelle EPFL sur 10 | E20: Echelle EPFL utilisée passage notation de 10 à 6 | F20: Echelle ECTS (European Credits Transfer System) | G20: Echelle Lettres USA | H20: Echelle Ulowa | I20: France
K21: Note | L21: meilleurs /suivant | M21: Mention | N21: Définition
D22: 10 | E22: 6 | F22: A | G22: A+ | I22: 18-20 | K22: A | L22: 10 % | M22: Excellent | N22: Résultats remarquables, avec seulement quelques insuffisances mineures
D23: 9.5 | E23: 5.75 | F23: A | G23: A+ | H23: 4.33 | I23: 17
D24: 9 | E24: 5.5 | F24: B | G24: A | H24: 4.00 | I24: 16 | K24: B | L24: 25 % | M24: Très bien | N24: Résultats supérieurs à la moyenne, malgré un certain nombre d'insuffisances
D25: 8.5 | E25: 5.25 | F25: B | G25: A- | H25: 3.67 | I25: 15
D26: 8 | E26: 5 | F26: C | G26: B+ | H26: 3.33 | I26: 14 | K26: C | L26: 30 % | M26: Bien | N26: Généralement bon, malgré un certain nombre d'insuffisances notables
D27: 7.5 | E27: 4.75 | F27: C | G27: B | H27: 3.00 | I27: 13
D28: 7 | E28: 4.5 | F28: D | G28: B- | H28: 2.67 | I28: 12 | K28: D | L28: 25 % | M28: Satisfaisant | N28: Travail honnête, mais comportant des lacunes importantes
D29: 6.5 | E29: 4.25 | F29: D | G29: C+ | H29: 2.33 | I29: 11
D30: 6 | E30: 4 | F30: E | G30: C | H30: 2.00 | I30: 10 | K30: E | L30: 10 % | M30: Passable | N30: Les résultats satisfont aux critères minimaux
D31: 5.5 | E31: 3.75 | F31: F | G31: C- | H31: 1.67 | I31: 9
D32: 5 | E32: 3.5 | F32: F | G32: D+ | H32: 1.33 | I32: 8 | K32: FX | M32: Insuffisant | N32: Un travail supplémentaire est nécessaire pour l'octroi d'un crédit
D33: 4.5 | E33: 3.25 | F33: F | G33: D | H33: 1.00 | I33: 7
B34: =Echelle!B42 ->  | C34: =Echelle!C42 ->  | D34: 4 | E34: 3 | F34: F | G34: D- | H34: 0.67 | I34: 6 | K34: F | M34: Insuffisant | N34: Un travail supplémentaire considérable est nécessaire
B35: =Echelle!B43 ->  | C35: =Echelle!C43 ->  | D35: 3.5 | E35: 2.75 | F35: F | G35: F | H35: 0.00 | I35: 5
B36: =Echelle!B44 ->  | C36: =Echelle!C44 ->  | D36: 3 | E36: 2.5 | F36: F | I36: 5
B37: =Echelle!B45 ->  | C37: =Echelle!C45 ->  | D37: 2.52 | E37: 2.25 | F37: F | I37: 4
B38: =Echelle!B46 ->  | C38: =Echelle!C46 ->  | D38: 2 | E38: 2 | F38: F | I38: 3
B39: =Echelle!B47 ->  | C39: =Echelle!C47 ->  | D39: 1.5 | E39: 1.75 | F39: F | I39: 2
B40: =Echelle!B48 ->  | C40: =Echelle!C48 ->  | D40: 1 | E40: 1.5 | F40: F | I40: 1
B41: =Echelle!B49 ->  | C41: =Echelle!C49 ->  | D41: 0.5 | E41: 1.25 | F41: F | I41: 1
B42: =Echelle!B50 ->  | C42: =Echelle!C50 ->  | D42: 0 | E42: 1 | F42: F | I42: 1 | K42: Dans le système ECTS, les étudiants sont d'abord divisés en deux groupes, ceux admis et ceux ajournés à l'épreuve.
B43: =Echelle!B51 ->  | C43: =Echelle!C51 ->  | F43: =Echelle!E51 ->  | G43: =Echelle!F51 -> 
A44: Version mars 2014
A45: © Yvan Péguiron
